bitfinex/quotes_ETHUSD_20241108
["timestamp","ask_amount","ask_price","bid_price","bid_amount"]
[1731098549445,0.31725841,2935.4,2935.2,0.44821352]
[1731098549626,0.31725841,2935.3,2935.1,4.00270165]
[1731098549829,1.50224308,2935.8,2935.1,4.00270165]
[1731098550136,0.56715667,2935.7,2935.1,4.00270165]
[1731098550363,0.31725186,2935.6,2935.1,4.00270165]
[1731098550636,0.56720477,2935.6,2935.1,4.00270165]
[1731098550796,0.56720477,2935.6,2934.9,0.6599]
[1731098550797,0.56720477,2935.6,2935.5,8.21260165]
[1731098551400,0.69804308,2936.5,2935.5,7.46175884]
[1731098551621,0.31716618,2936.4,2936.1,3.25185884]
[1731098551823,0.31716618,2936.3,2936.1,3.25185884]
[1731098552048,0.31716618,2936.2,2936.1,3.25185884]
[1731098552210,0.31716618,2936.2,2935.8,3.25185884]
[1731098552211,0.8257,2936.1,2935.8,3.25185884]
[1731098552415,12.11188022,2936.6,2935.8,3.25185884]
[1731098552416,0.31716618,2936.0,2935.8,3.25185884]
[1731098552617,1.52374308,2936.4,2935.8,3.25185884]
[1731098552618,0.8257,2936.4,2935.8,3.25185884]
[1731098553143,0.56711888,2936.3,2935.8,3.25185884]
[1731098553302,0.31715131,2936.2,2935.8,3.25185884]
[1731098553647,0.31715131,2936.1,2935.8,3.25185884]
[1731098553940,0.31715131,2936.0,2935.8,3.25185884]
[1731098554098,0.8257,2936.4,2935.8,3.25185884]
[1731098554302,0.56712136,2936.3,2935.8,3.25185884]
[1731098554539,0.3170832,2936.2,2935.8,3.25185884]
[1731098554753,0.3170832,2936.1,2935.8,3.25185884]
[1731098554955,0.3170832,2936.0,2935.8,3.25185884]
[1731098555257,0.8257,2936.4,2935.8,3.25185884]
[1731098555457,0.56709483,2936.3,2935.8,3.25185884]
[1731098555754,0.31703501,2936.2,2935.8,3.25185884]
[1731098555914,0.31703501,2936.1,2935.8,3.25185884]
[1731098556120,0.31703501,2936.0,2935.8,3.25185884]
[1731098556320,0.8257,2936.4,2935.8,3.25185884]
[1731098556523,0.56704282,2936.3,2935.8,3.25185884]
[1731098556715,0.8257,2936.4,2935.8,3.25185884]
[1731098556716,0.31700232,2936.2,2935.8,3.25185884]
[1731098556916,0.31700232,2936.1,2935.8,3.25185884]
[1731098557119,0.31700232,2936.0,2935.5,0.6599]
[1731098557350,0.7626,2935.9,2935.5,3.25185884]
[1731098560129,0.31701622,2935.8,2935.5,3.25185884]
[1731098560355,0.7626,2935.9,2935.5,3.25185884]
[1731098560562,0.3170309,2935.8,2935.5,3.25185884]
[1731098560856,0.7626,2935.9,2935.5,3.25185884]
[1731098561058,0.31703145,2935.8,2935.5,3.25185884]
[1731098561245,0.7626,2935.9,2935.5,3.25185884]
[1731098561567,0.31707501,2935.8,2935.5,3.25185884]
[1731098561859,0.7626,2935.9,2935.5,3.25185884]
[1731098562055,0.31707241,2935.8,2935.5,3.25185884]
[1731098562279,0.7626,2935.9,2935.5,3.25185884]
[1731098562581,0.31708303,2935.8,2935.5,3.25185884]
[1731098562790,0.31708303,2935.7,2935.5,3.25185884]
[1731098562991,0.31708303,2935.8,2935.5,3.25185884]
[1731098563157,0.31713362,2935.7,2935.5,3.25185884]
[1731098563349,0.7626,2935.9,2935.5,3.25185884]
[1731098563553,0.31718331,2935.8,2935.5,3.25185884]
[1731098563748,0.5673864,2935.7,2934.4,0.6599]
[1731098563949,1.07208331,2935.6,2934.9,3.25185884]
[1731098564259,0.31718331,2935.5,2934.9,3.25185884]
[1731098564572,0.7549,2935.3,2934.9,3.25185884]
[1731098564757,0.31718331,2935.2,2934.9,3.25185884]
[1731098564963,0.31718331,2935.1,2934.9,3.25185884]
[1731098565156,0.31718331,2935.0,2934.9,3.25185884]
[1731098566298,0.7549,2935.3,2934.9,3.25185884]
[1731098566448,0.31741466,2935.0,2934.9,3.25185884]
[1731098567987,0.01,2934.7,2933.1,1.72385246]
[1731098568193,1.77281072,2934.6,2933.6,3.25185884]
[1731098568398,1.77281072,2934.6,2932.8,3.27185884]
[1731098568399,0.56741123,2934.5,2934.2,3.25185884]
[1731098568552,0.31741466,2934.4,2934.2,3.25185884]
[1731098568753,0.31741466,2934.3,2934.2,3.25185884]
[1731098568988,0.31741466,2934.3,2933.9,3.91175884]
[1731098569285,0.7549,2934.6,2933.9,3.91175884]
[1731098569497,0.31734024,2934.5,2933.9,3.91175884]
[1731098569803,0.7549,2934.6,2933.9,3.91175884]
[1731098569804,0.31734245,2934.4,2933.9,3.91175884]
[1731098569991,0.31734245,2934.3,2933.9,3.91175884]
[1731098570195,0.7549,2934.6,2933.9,3.25185884]
[1731098570501,0.31728158,2934.5,2933.9,3.25185884]
[1731098570655,0.31728158,2934.4,2933.9,3.25185884]
[1731098570862,0.31728158,2934.3,2933.9,3.25185884]
[1731098571194,0.7549,2934.6,2933.9,3.25185884]
[1731098571366,0.31719574,2934.5,2933.9,3.57704472]
[1731098571570,0.7549,2934.6,2933.9,3.57704472]
[1731098571764,0.31717366,2934.5,2933.9,3.57704472]
[1731098572083,0.7549,2934.6,2933.9,3.57704472]
[1731098572692,0.31712962,2934.5,2933.9,3.57704472]
[1731098573002,0.7549,2934.6,2933.9,3.57704472]
[1731098573639,0.31709478,2934.5,2933.9,3.57704472]
[1731098573811,0.7549,2934.6,2933.9,3.25185884]
[1731098574007,0.317096,2934.5,2933.9,3.25185884]
[1731098574208,0.7549,2934.6,2933.9,3.25185884]
[1731098574538,0.31712379,2934.5,2933.9,3.25185884]
[1731098574706,0.7549,2934.6,2934.2,3.25185884]
[1731098574916,0.8124,2934.8,2934.5,3.25185884]
[1731098575143,0.31710413,2934.7,2934.5,3.25185884]
[1731098575356,0.8124,2934.8,2934.5,3.25185884]
[1731098575508,1.05074409,2935.3,2934.6,0.55]
[1731098575509,0.8124,2935.1,2934.6,0.55]
[1731098575857,0.3542578,2935.0,2934.9,1.2099]
[1731098576056,0.3542578,2935.0,2934.9,4.46175884]
[1731098577552,0.3542578,2935.0,2934.9,3.80185884]
[1731098577740,0.3542578,2935.0,2934.9,3.25185884]
[1731098581382,0.3542578,2935.0,2934.9,7.12704472]
[1731098581535,0.70049606,2935.8,2935.0,4.2099]
[1731098581742,0.31708503,2935.7,2935.2,3.25185884]
[1731098581940,0.35398218,2935.4,2935.2,3.25185884]
[1731098587579,0.35398218,2935.4,2935.1,0.12879648]
[1731098587782,0.35398218,2935.4,2935.0,3.55]
[1731098587941,0.3171415,2935.3,2934.5,0.6599]
[1731098588142,0.3171415,2935.2,2934.5,3.91175884]
[1731098588377,0.3171415,2935.1,2934.5,3.91175884]
[1731098588576,12.4658624,2935.4,2934.5,3.91175884]
[1731098588818,0.56759595,2935.3,2934.5,3.91175884]
[1731098589118,0.31719225,2935.2,2934.5,3.91175884]
[1731098589294,0.31719225,2935.1,2934.5,3.91175884]
[1731098589621,0.31719225,2935.0,2934.6,0.55]
[1731098589815,12.4658624,2935.4,2934.6,0.55]
[1731098589977,0.7725,2935.2,2934.5,3.25185884]
[1731098590176,0.3172051,2935.1,2934.5,3.25185884]
[1731098590379,0.3172051,2935.0,2934.5,3.25185884]
[1731098590617,0.3172051,2934.9,2934.5,3.25185884]
[1731098590792,0.7725,2935.2,2934.5,3.25185884]
[1731098590984,0.31723225,2935.1,2934.5,3.25185884]
[1731098591211,0.31723225,2935.0,2934.5,3.25185884]
[1731098591415,0.31723225,2934.9,2934.5,3.25185884]
[1731098591579,0.7725,2935.2,2934.5,3.25185884]
[1731098591779,0.31722596,2935.1,2934.5,3.25185884]
[1731098591975,0.31722596,2935.0,2934.5,3.25185884]
[1731098592204,0.31721655,2934.9,2934.5,3.25185884]
[1731098592437,0.35436661,2935.0,2934.5,3.25185884]
[1731098592628,0.03715007,2935.0,2934.9,4.2099]
[1731098592786,0.70049606,2935.4,2935.1,3.25185884]
[1731098592986,0.70049606,2935.4,2935.2,3.55]
[1731098593187,0.70049606,2935.4,2935.2,6.80185884]
[1731098593492,0.70049606,2935.4,2935.3,1.56218494]
[1731098594131,0.34799601,2935.4,2935.3,2.22208494]
[1731098594342,1.40099213,2935.7,2935.5,0.6599]
[1731098594546,2.10254361,2936.1,2935.8,3.6599]
[1731098594710,2.10254361,2936.1,2935.9,0.55]
[1731098594894,0.7559,2936.7,2936.1,0.55]
[1731098595094,0.31698059,2936.6,2936.4,3.25185884]
[1731098595344,0.8249,2937.0,2936.4,3.25185884]
[1731098595525,0.31685595,2936.9,2936.8,3.25185884]
[1731098596147,0.35432891,2937.0,2936.8,3.25185884]
[1731098596346,0.05107534,2937.2,2936.8,3.25185884]
[1731098596559,0.05107534,2937.2,2937.1,3.25185884]
[1731098599160,12.93605556,2937.2,2935.9,0.6599]
[1731098599315,12.11188022,2937.1,2936.1,4.00162179]
[1731098599510,0.7731,2937.0,2936.1,4.00162179]
[1731098601647,0.7731,2937.0,2936.2,3.0]
[1731098603214,12.88498022,2937.0,2936.2,3.0]
[1731098605400,0.7891,2937.3,2936.9,4.00162179]
[1731098605556,0.35429142,2937.4,2937.0,3.61809172]
[1731098605758,0.7891,2937.6,2937.0,3.55]
[1731098605957,1.14347533,2937.6,2937.0,3.55]
[1731098606769,0.7891,2937.6,2937.0,3.55]
[1731098608176,0.7891,2937.6,2937.0,3.0]
[1731098608907,0.7891,2937.6,2937.0,3.12949183]
[1731098610569,0.7891,2937.6,2937.0,3.0]
[1731098616230,0.7891,2937.6,2936.9,4.00162179]
[1731098616385,0.7891,2937.6,2936.5,4.66152179]
[1731098616591,0.7891,2937.6,2936.5,4.00162179]
[1731098616831,0.24960716,2937.5,2936.5,4.00162179]
[1731098617121,0.24960716,2937.4,2936.5,4.00162179]
[1731098617333,0.24960716,2937.3,2936.5,4.00162179]
[1731098617490,0.24960716,2937.3,2936.6,3.0]
[1731098617491,0.7716,2937.2,2936.6,3.0]
[1731098620191,0.25018704,2937.1,2936.6,3.0]
[1731098620403,0.7716,2937.2,2936.6,3.0]
[1731098620629,0.25016574,2937.1,2936.6,3.0]
[1731098620834,0.7716,2937.2,2936.6,3.0]
[1731098621036,0.25022012,2937.1,2936.6,3.0]
[1731098621323,0.7716,2937.2,2936.6,3.0]
[1731098621324,0.25022012,2937.0,2936.8,3.25002547]
[1731098621531,12.11188022,2937.3,2936.9,0.55]
[1731098621729,12.11188022,2937.3,2937.1,3.80002547]
[1731098621938,0.7604,2938.2,2937.2,4.2099]
[1731098622230,0.25057987,2938.0,2937.9,3.80002547]
[1731098622525,0.7604,2938.5,2938.0,0.55]
[1731098622742,0.30187532,2938.1,2937.9,3.25002547]
[1731098623053,0.30187532,2938.1,2937.2,3.0]
[1731098623054,0.05106457,2938.1,2937.6,3.25002547]
[1731098623333,0.25077662,2938.0,2937.6,3.25002547]
[1731098623535,0.25077662,2937.9,2937.6,3.25002547]
[1731098623747,0.25077662,2937.8,2937.6,3.25002547]
[1731098623952,0.25077662,2937.8,2937.2,3.0]
[1731098623953,0.25077662,2937.7,2937.3,3.25002547]
[1731098624114,0.25077662,2937.6,2937.3,3.25002547]
[1731098624435,0.25077662,2937.5,2937.3,3.25002547]
[1731098624738,0.7604,2937.9,2937.3,3.25002547]
[1731098624739,0.25077662,2937.4,2937.3,3.25002547]
[1731098626947,0.7686,2937.3,2935.7,0.6599]
[1731098627103,0.7686,2937.1,2936.1,3.25002547]
[1731098627304,0.7686,2937.1,2935.7,0.6599]
[1731098627305,0.25077662,2937.0,2936.4,3.25002547]
[1731098627654,0.25077662,2936.9,2936.4,3.25002547]
[1731098627802,0.25077662,2936.8,2936.4,3.25002547]
[1731098627999,0.25077662,2936.7,2936.4,3.25002547]
[1731098628198,12.11188022,2937.0,2936.4,3.25002547]
[1731098628199,0.25077662,2936.6,2936.4,3.25002547]
[1731098628440,0.25098008,2936.5,2936.4,3.25002547]
[1731098629815,1.01959434,2936.7,2935.8,3.25002547]
[1731098630019,0.7686,2936.5,2935.4,0.79335374]
[1731098630304,0.25099434,2936.4,2935.4,3.90992547]
[1731098630515,0.25099434,2936.3,2935.4,3.90992547]
[1731098630718,0.25099434,2936.2,2935.4,3.90992547]
[1731098631009,0.25099434,2936.1,2935.7,3.25002547]
[1731098631205,0.7686,2936.5,2935.8,3.0]
[1731098631419,0.25086907,2936.4,2935.8,3.0]
[1731098631638,0.25086907,2936.3,2935.5,4.0030431]
[1731098631907,0.7686,2936.5,2935.5,4.0030431]
[1731098631908,0.25086907,2936.2,2935.6,3.55]
[1731098632216,0.25086907,2936.1,2935.6,3.55]
[1731098632424,1.03966907,2936.0,2935.2,0.12892456]
[1731098632631,0.7888,2936.0,2935.1,4.6629431]
[1731098632838,0.7888,2936.0,2935.1,5.12923741]
[1731098633042,0.25075509,2935.9,2935.1,4.6629431]
[1731098633243,0.7888,2936.0,2935.1,4.0030431]
[1731098633544,0.25060267,2935.9,2935.1,4.0030431]
[1731098633754,0.25060267,2935.8,2935.1,4.0030431]
[1731098634052,1.02896684,2935.7,2934.5,0.32518588]
[1731098634352,0.7783,2935.5,2934.4,4.6629431]
[1731098634554,0.5670476,2935.4,2934.4,4.0030431]
[1731098634719,0.5670476,2935.3,2934.4,4.0030431]
[1731098634923,0.5670476,2935.2,2934.4,4.0030431]
[1731098635129,0.7783,2935.5,2934.4,4.0030431]
[1731098635432,0.56645288,2935.4,2934.4,4.0030431]
[1731098635648,0.7783,2935.5,2934.5,3.0]
[1731098635951,0.5664398,2935.4,2934.5,3.0]
[1731098636105,0.7783,2935.5,2934.5,3.0]
[1731098636306,0.3163723,2935.4,2934.5,3.0]
[1731098636506,0.7783,2935.5,2934.5,3.0]
[1731098636746,0.56625631,2935.4,2934.5,3.0]
[1731098636945,0.7783,2935.5,2934.5,3.0]
[1731098637145,0.31636531,2935.4,2934.5,3.0]
[1731098637317,0.31636531,2935.3,2934.5,3.0]
[1731098637659,0.7783,2935.5,2934.5,3.0]
[1731098637866,0.56616865,2935.4,2934.5,3.0]
[1731098638021,0.31640409,2935.3,2934.5,3.0]
[1731098638223,0.7783,2935.5,2934.5,3.0]
[1731098638442,0.31640283,2935.4,2934.5,3.0]
[1731098638646,0.31640283,2935.3,2934.5,3.0]
[1731098638861,12.11188022,2935.3,2934.5,3.0]
[1731098641122,12.11188022,2935.3,2934.6,0.55]
[1731098642375,0.7855,2935.2,2934.2,0.55]
[1731098642548,0.7855,2935.1,2933.8,4.0030431]
[1731098642866,12.89738022,2935.0,2933.9,0.40030431]
[1731098643224,0.35429828,2934.9,2933.9,0.40030431]
[1731098643939,0.35429828,2934.9,2934.0,0.55]
[1731098644341,0.7876,2934.8,2934.0,0.55]
[1731098647334,0.7876,2934.8,2934.0,1.34533474]
[1731098647531,0.7876,2934.8,2934.6,4.0030431]
[1731098647828,0.756,2935.3,2934.7,0.55]
[1731098648142,0.35421153,2935.4,2934.7,0.55]
[1731098648460,0.35421153,2935.4,2935.0,4.0030431]
[1731098648942,0.35421153,2935.4,2935.0,3.9030431]
[1731098649650,0.756,2935.6,2935.0,3.9030431]
[1731098650032,0.35431071,2935.5,2935.0,3.9030431]
[1731098652365,0.35431071,2935.5,2935.0,4.33887784]
[1731098653049,0.35431071,2935.5,2935.0,3.9030431]
[1731098653566,0.35431071,2935.5,2935.1,3.25395976]
[1731098653878,0.35431071,2935.5,2934.7,3.25395976]
[1731098654229,1.03217132,2935.4,2934.7,3.25395976]
[1731098654565,0.7819,2935.4,2934.7,3.25395976]
[1731098655472,0.7819,2935.4,2935.0,3.25395976]
[1731098656235,0.2507507,2935.3,2935.0,3.25395976]
[1731098656439,0.7819,2935.4,2935.0,3.25395976]
[1731098656767,0.25081323,2935.3,2935.0,3.25395976]
[1731098657085,0.7819,2935.4,2935.0,3.25395976]
[1731098657238,0.25096964,2935.3,2935.0,3.25395976]
[1731098657448,0.25098744,2935.2,2934.7,3.25395976]
[1731098657687,0.7819,2935.4,2934.7,3.25395976]
[1731098657842,0.25098416,2935.3,2934.7,3.25395976]
[1731098658037,0.25098416,2935.2,2934.7,3.25395976]
[1731098658245,0.25098416,2935.1,2934.7,3.25395976]
[1731098658445,0.7819,2935.4,2934.7,3.25395976]
[1731098658653,0.25115088,2935.3,2934.7,3.25395976]
[1731098658979,0.25115088,2935.2,2934.5,3.6599]
[1731098659178,0.25115088,2935.2,2934.7,3.25395976]
[1731098659485,0.25115088,2935.1,2934.7,3.25395976]
[1731098659647,0.25115088,2935.0,2934.7,3.25395976]
[1731098659847,12.89378022,2935.4,2934.7,3.25395976]
[1731098660159,0.25132181,2935.3,2934.7,3.25395976]
[1731098660374,0.25132181,2935.2,2934.7,3.25395976]
[1731098660662,0.25132181,2935.1,2934.7,3.25395976]
[1731098660861,0.25132181,2935.0,2934.7,3.25395976]
[1731098661075,0.25132181,2934.9,2934.7,3.25395976]
[1731098661380,12.89378022,2935.4,2934.7,3.25395976]
[1731098661543,0.25157696,2935.3,2934.7,3.25395976]
[1731098661741,0.25157696,2935.2,2934.7,3.25395976]
[1731098661947,0.25157696,2935.1,2934.7,3.25395976]
[1731098662145,0.25157696,2935.0,2934.7,3.25395976]
[1731098662377,12.89378022,2935.4,2934.7,3.25395976]
[1731098662547,0.25139339,2934.9,2934.7,3.25395976]
[1731098662751,12.89378022,2935.4,2934.7,3.25395976]
[1731098662979,0.25147534,2935.3,2934.7,3.25395976]
[1731098663189,0.25147534,2935.2,2934.7,3.25395976]
[1731098663493,0.25147534,2935.1,2934.7,3.25395976]
[1731098663700,0.25147534,2935.0,2934.7,3.25395976]
[1731098663998,0.25147534,2934.9,2934.7,3.25395976]
[1731098664193,12.89378022,2935.4,2934.7,6.25395976]
[1731098664406,1.05031391,2935.3,2934.4,3.25395976]
[1731098664697,12.36349413,2935.2,2935.0,3.25395976]
[1731098664871,0.25161391,2935.1,2935.0,6.25395976]
[1731098665053,0.7987,2935.8,2935.1,3.0]
[1731098665254,0.25166084,2935.7,2935.3,3.25395976]
[1731098665494,0.25166084,2935.6,2935.3,3.25395976]
[1731098665707,0.25166084,2935.6,2934.8,0.6599]
[1731098665708,1.15281541,2935.8,2935.1,3.0]
[1731098665857,0.7987,2935.4,2934.7,3.25395976]
[1731098666060,12.91058022,2935.4,2934.7,3.25395976]
[1731098666366,0.25160781,2935.3,2934.7,3.25395976]
[1731098666581,12.91058022,2935.4,2934.5,0.6599]
[1731098666582,0.25160781,2935.2,2934.5,0.6599]
[1731098666786,0.25160781,2935.1,2934.6,3.25395976]
[1731098666968,0.25160781,2935.0,2934.6,3.25395976]
[1731098667170,12.91058022,2935.4,2934.6,3.25395976]
[1731098667372,0.25152746,2935.3,2934.6,3.25395976]
[1731098667571,0.25152746,2935.2,2934.6,3.25395976]
[1731098667799,0.25152746,2935.1,2934.6,3.25395976]
[1731098668006,0.25152746,2935.0,2934.6,3.25395976]
[1731098668209,12.91058022,2935.4,2934.6,3.25395976]
[1731098668377,0.25155193,2935.3,2934.6,3.25395976]
[1731098668560,0.25155193,2935.2,2934.6,3.25395976]
[1731098668759,0.25155193,2935.1,2934.6,3.25395976]
[1731098668999,12.91058022,2935.4,2934.6,3.25395976]
[1731098669207,0.25154019,2935.0,2934.6,3.25395976]
[1731098669504,12.91058022,2935.4,2934.6,3.25395976]
[1731098669821,12.91058022,2935.4,2934.3,0.13393206]
[1731098669822,0.35411541,2935.8,2935.3,3.25395976]
[1731098669991,1.02204083,2935.7,2935.3,3.25395976]
[1731098670163,1.02204083,2935.7,2934.7,3.0]
[1731098670164,1.3384383,2935.6,2935.0,3.25395976]
[1731098670496,0.5679383,2935.5,2935.0,3.25395976]
[1731098670671,0.25154083,2935.4,2935.0,3.25395976]
[1731098670873,0.7705,2935.6,2935.0,3.25395976]
[1731098670874,0.25154083,2935.3,2935.0,3.25395976]
[1731098671072,0.2515098,2935.2,2935.0,3.25395976]
[1731098671279,0.7705,2935.6,2935.0,3.25395976]
[1731098671486,0.56841152,2935.5,2935.0,3.25395976]
[1731098671662,0.25152442,2935.4,2935.0,3.25395976]
[1731098671863,0.7705,2935.6,2935.0,3.25395976]
[1731098671864,0.25152442,2935.3,2935.0,3.25395976]
[1731098672096,0.31719805,2935.2,2935.0,3.25395976]
[1731098672298,0.25153536,2935.2,2935.0,3.25395976]
[1731098672496,0.7705,2935.6,2935.0,3.25395976]
[1731098673867,0.56901237,2935.5,2935.0,3.25395976]
[1731098674099,0.31738426,2935.4,2935.0,3.25395976]
[1731098674298,0.31738426,2935.3,2935.0,3.25395976]
[1731098674488,0.56901237,2935.2,2935.0,3.25395976]
[1731098674689,0.31738426,2935.1,2935.0,3.25395976]
[1731098675272,0.56916114,2935.1,2935.0,3.25395976]
[1731098677181,0.31795304,2935.1,2935.0,3.25395976]
[1731098677482,0.56991539,2935.1,2935.0,3.25395976]
[1731098679220,0.31795304,2935.1,2935.0,3.25395976]
[1731098680709,0.31809684,2935.1,2935.0,3.25395976]
[1731098684488,0.31809684,2935.1,2935.0,7.80947636]
[1731098684691,12.11188022,2935.7,2935.2,0.6599]
[1731098685018,0.6994661,2936.0,2935.6,3.80395976]
[1731098685219,0.6994661,2936.1,2936.0,3.25395976]
[1731098685421,0.25190011,2936.1,2935.7,3.25395976]
[1731098685636,0.95668721,2936.0,2935.7,3.25395976]
[1731098685921,0.95668721,2935.9,2935.7,3.25395976]
[1731098686133,0.25190011,2935.8,2935.7,3.25395976]
[1731098686291,1.04640011,2935.8,2935.7,3.25395976]
[1731098687188,0.7945,2935.8,2935.7,3.25395976]
[1731098687533,1.04650141,2935.8,2935.7,3.25395976]
[1731098689438,1.04639511,2935.8,2935.7,3.25395976]
[1731098689797,1.04639511,2935.8,2935.4,0.12798016]
[1731098690028,0.7047871,2935.6,2935.1,3.25395976]
[1731098690242,0.25181338,2935.5,2935.1,3.25395976]
[1731098690443,0.25181338,2935.4,2935.1,3.25395976]
[1731098690649,0.7945,2935.3,2935.1,3.25395976]
[1731098690816,0.25177262,2935.2,2935.1,3.25395976]
[1731098693522,0.95655972,2935.2,2934.8,3.25395976]
[1731098693718,0.7945,2935.3,2934.8,3.25395976]
[1731098693719,0.95655972,2935.1,2934.8,3.25395976]
[1731098693919,0.25177262,2935.0,2934.8,3.25395976]
[1731098694140,0.95655972,2935.0,2934.8,3.25395976]
[1731098694338,1.03852675,2934.9,2934.5,3.25395976]
[1731098694586,0.95690369,2934.8,2934.5,3.25395976]
[1731098694884,0.95690369,2934.7,2934.5,3.25395976]
[1731098695091,0.95690369,2934.6,2934.5,3.25395976]
[1731098695547,0.25182675,2934.6,2934.5,3.25395976]
[1731098695883,0.25182675,2934.6,2934.2,3.25395976]
[1731098696033,0.70507694,2934.6,2934.2,3.25395976]
[1731098696688,0.31805816,2934.5,2934.2,3.25395976]
[1731098696978,0.31805816,2934.4,2934.2,3.25395976]
[1731098697172,0.31805816,2934.3,2934.2,3.25395976]
[1731098697480,0.31799436,2934.3,2934.2,3.25395976]
[1731098697688,1.05927277,2934.7,2934.2,3.25395976]
[1731098697891,0.31799542,2934.6,2934.2,3.25395976]
[1731098698193,1.05927277,2934.7,2934.2,3.25395976]
[1731098698194,0.31799524,2934.5,2934.2,3.25395976]
[1731098698491,0.31799524,2934.4,2934.2,3.25395976]
[1731098698645,0.31799524,2934.3,2934.2,3.25395976]
[1731098700691,0.31788716,2934.3,2934.2,3.25395976]
[1731098700886,0.31788716,2934.3,2934.1,3.13079212]
[1731098701191,0.31788716,2934.2,2934.1,3.0]
[1731098701358,0.31788716,2934.2,2934.1,3.25395976]
[1731098701557,0.35419583,2934.7,2934.1,6.65216166]
[1731098701768,0.35419583,2934.7,2934.6,3.25395976]
[1731098701987,0.31780492,2934.7,2934.6,3.25395976]
[1731098703356,0.31781125,2934.7,2934.6,3.25395976]
[1731098703572,1.02288819,2934.7,2934.6,3.25395976]
[1731098703900,1.27446465,2934.7,2934.3,3.25395976]
[1731098704197,1.12271125,2934.6,2934.3,3.25395976]
[1731098704493,1.12271125,2934.6,2933.5,10.166166]
[1731098704494,0.31781125,2934.5,2933.5,10.166166]
[1731098704663,0.31781125,2934.5,2934.0,3.25395976]
[1731098704664,1.27429094,2934.4,2934.0,3.25395976]
[1731098704871,0.31781125,2934.3,2933.7,0.6599]
[1731098705086,0.31781125,2934.2,2933.7,0.6599]
[1731098705307,0.31781125,2934.1,2933.8,0.06816193]
[1731098705467,12.11188022,2934.5,2933.8,0.06816193]
[1731098705668,0.31772733,2934.4,2934.2,3.25395976]
[1731098705869,0.31772733,2934.3,2934.2,3.25395976]
[1731098708708,0.31772733,2934.3,2933.9,3.25395976]
[1731098708908,0.31772733,2934.2,2933.9,3.25395976]
[1731098709075,0.31772733,2934.1,2933.9,3.25395976]
[1731098709405,1.50997694,2934.6,2933.9,3.25395976]
[1731098709607,0.56885658,2934.5,2934.2,3.25395976]
[1731098709772,0.3175243,2934.4,2934.2,3.25395976]
[1731098709973,0.8049,2934.6,2934.2,3.25395976]
[1731098709974,0.3175243,2934.3,2934.2,3.25395976]
[1731098713044,0.3175243,2934.3,2933.9,3.25395976]
[1731098713243,1.0846243,2934.2,2933.9,3.25395976]
[1731098713546,0.31733623,2934.1,2933.9,3.25395976]
[1731098713762,0.7671,2934.2,2933.9,3.25395976]
[1731098713904,0.3173365,2934.1,2933.9,3.25395976]
[1731098714104,0.7671,2934.2,2933.9,3.25395976]
[1731098716333,12.46595386,2934.4,2933.9,3.25395976]
[1731098716518,0.31720283,2934.3,2933.9,3.25395976]
[1731098716848,0.31720283,2934.2,2933.9,3.25395976]
[1731098717150,0.7922,2934.3,2933.9,3.25395976]
[1731098717308,0.31717806,2934.2,2933.9,3.25395976]
[1731098717509,0.7922,2934.3,2933.9,3.25395976]
[1731098717710,0.31717741,2934.2,2933.9,3.25395976]
[1731098720537,0.25201472,2934.1,2933.9,3.25395976]
[1731098720737,0.7922,2934.3,2933.9,3.25395976]
[1731098720971,0.56904246,2934.2,2933.9,3.25395976]
[1731098721111,0.25194551,2934.1,2933.9,3.25395976]
[1731098721313,0.7922,2934.3,2933.9,3.25395976]
[1731098721558,0.56905313,2934.2,2933.9,3.25395976]
[1731098721765,0.56905313,2934.1,2933.9,3.25395976]
[1731098722053,0.31707373,2934.0,2933.6,0.13119446]
[1731098722282,0.25195626,2933.9,2933.7,3.25395976]
[1731098722432,12.11188022,2934.2,2933.7,3.25395976]
[1731098722752,0.56898994,2934.1,2933.7,3.25395976]
[1731098722911,0.7966,2934.0,2933.5,10.166166]
[1731098723112,0.56898994,2933.9,2933.5,10.166166]
[1731098723358,0.25193711,2933.8,2933.5,10.166166]
[1731098723522,0.25193711,2933.7,2933.5,10.166166]
[1731098723884,0.7966,2934.0,2933.5,10.166166]
[1731098724018,0.56906874,2933.9,2933.5,10.166166]
[1731098724215,0.7966,2934.0,2933.5,10.166166]
[1731098724216,0.25203115,2933.8,2933.5,10.166166]
[1731098724414,0.25203115,2933.7,2933.5,10.166166]
[1731098724649,0.7966,2934.0,2933.5,10.166166]
[1731098724815,0.2520949,2933.9,2933.7,3.25395976]
[1731098725014,0.7966,2934.0,2933.7,3.25395976]
[1731098725015,0.2520949,2933.8,2933.7,3.25395976]
[1731098725460,0.2520949,2933.8,2933.5,10.166166]
[1731098725736,0.2520949,2933.7,2933.5,10.166166]
[1731098726075,0.35398643,2933.9,2933.5,10.166166]
[1731098726274,0.2520373,2933.8,2933.5,10.166166]
[1731098726572,0.2520373,2933.7,2933.5,10.166166]
[1731098726941,0.35398643,2933.9,2933.5,10.166166]
[1731098727270,0.25200415,2933.8,2933.5,10.166166]
[1731098727480,0.25200415,2933.7,2933.5,10.166166]
[1731098727648,12.46586665,2933.9,2933.5,10.166166]
[1731098727874,0.25200048,2933.8,2933.5,10.166166]
[1731098728186,12.46586665,2933.9,2933.5,10.166166]
[1731098728187,0.7991,2933.6,2933.5,10.166166]
[1731098728387,0.25200048,2933.6,2933.5,10.166166]
[1731098728550,12.46586665,2933.9,2933.5,10.166166]
[1731098728750,0.25196278,2933.8,2933.7,3.25395976]
[1731098728972,12.46586665,2933.9,2933.7,4.24197203]
[1731098729174,12.11188022,2933.9,2933.8,0.6599]
[1731098729495,12.11188022,2933.9,2933.8,3.6599]
[1731098731101,12.11188022,2934.6,2933.8,3.6599]
[1731098731263,0.56900083,2934.5,2934.2,3.25395976]
[1731098731650,0.25193521,2934.4,2934.2,3.25395976]
[1731098731804,0.35385942,2934.6,2934.3,3.25395976]
[1731098731956,0.35385942,2934.6,2934.4,0.32539598]
[1731098732164,0.05111269,2935.2,2934.5,1.2099]
[1731098732363,0.56912482,2935.1,2934.8,3.25395976]
[1731098732664,0.05111269,2935.2,2934.8,3.25395976]
[1731098732863,0.56911998,2935.1,2934.8,3.25395976]
[1731098733090,0.05111269,2935.2,2934.8,3.25395976]
[1731098733294,0.25193318,2935.1,2934.8,3.25395976]
[1731098733478,0.31708593,2935.1,2934.8,3.25395976]
[1731098733778,0.05111269,2935.2,2934.8,3.25395976]
[1731098734002,0.31717805,2935.1,2934.8,3.25395976]
[1731098734163,0.05111269,2935.2,2934.8,3.57935574]
[1731098735816,0.31742199,2935.1,2934.8,3.57935574]
[1731098736004,0.31742199,2935.0,2934.8,3.57935574]
[1731098736174,0.05111269,2935.2,2934.8,3.57935574]
[1731098736529,0.31748042,2935.1,2934.9,0.35793557]
[1731098736816,0.31748042,2935.1,2934.4,0.45900884]